Cogmind - Beta 11 X8 @@@ ROGUE MODE // 2022.02.03 @ 21:39:52 Player: maxwell Result: Self-destructed Performance ------------- Evolutions (6) 3000 Regions Visited (18) 3600 Robots Destroyed (248) 1240 Value Destroyed (10674) 10674 Prototype IDs (29) 580 Alien Tech Used (0) 0 Bonus (3765) 3765 TOTAL SCORE: 22859 Bonus ------- High Alert Combat Kills 2902 Follower Combat Kills 1901 Met Data Miner 300 Met R17 at Cetus 500 Friendly Fire -1838 Cogmind --------- Core Integrity 561/1150 Matter 125/300 Energy 100/100 System Corruption 20% Temperature Cool (0) Movement Treading (250) Ox1 Location -4/Factory Parts ------- > --- POWER (1) -------- (None) > --- PROPULSION (6) --- Armored Medium Treads Armored Medium Treads > --- UTILITY (9) ------ Experimental Cooling System Huge Storage Unit Improved Signal Interpreter Improved Targeting Computer Improved Targeting Computer Improved Target Analyzer Improved Weapon Cycler > --- WEAPON (3) ------- Scatter Rocket Array > --- INVENTORY (25) --- Light Antimatter Reactor Armored Medium Treads Improved Heat Sink Advanced Heat Sink Huge Storage Unit High-capacity Matter Pod (0) Advanced Signal Interpreter Active Sensor Suite Improved Phase Shifter Centrium Medium Armor Plating Centrium Medium Armor Plating Mobile Refinery Mk. CCLXVII Advanced Variable Charge Gun High-powered Shotgun High-powered Shotgun Improved KE Penetrator Neutron Missile Launcher Molecular Deconstructor Peak State ------------ > --- POWER ------------ Light Antimatter Reactor > --- PROPULSION ------- Spiked Medium Treads Spiked Medium Treads Centrium Heavy Treads Centrium Heavy Treads > --- UTILITY ---------- Huge Storage Unit Advanced Sensor Array Improved Signal Interpreter Centrium Medium Armor Plating Centrium Medium Armor Plating Centrium Medium Armor Plating Improved Shield Generator Advanced System Shield > --- WEAPON ----------- Improved KE Penetrator Improved KE Penetrator Improved KE Penetrator > --- INVENTORY -------- Neutrino Core Neutrino Core Armored Medium Treads Centrium Heavy Treads Centrium Heavy Treads Centrium Heavy Treads Huge Storage Unit Compact Matter Pod Makeshift Transmission Jammer Centrium Medium Armor Plating Centrium Medium Armor Plating Mobile Refinery Mk. CCLXVII Advanced Variable Charge Gun Improved KE Penetrator Improved KE Penetrator Enhanced Gauss Cannon Scatter Rocket Array Neutron Missile Launcher Neutron Missile Launcher Molecular Deconstructor [Rating: 140] Favorites ----------- Power Cooled Ion Engine Engine Cooled Ion Engine Power Core Neutrino Core Reactor Antimatter Reactor Propulsion Light Treads Treads Light Treads Utility Huge Storage Unit Device Experimental Sensor Array Storage Huge Storage Unit Processor Improved Signal Interpreter Hackware Hacking Suite Protection Improved Light Armor Plating Weapon Enhanced Autogun Energy Gun Beamcaster Energy Cannon Neutron Cannon Ballistic Gun Enhanced Autogun Ballistic Cannon Battle Cannon Launcher Advanced EMP Blaster Special Weapon Flamer Impact Weapon Heavy Mace Piercing Weapon Spear Build | -11 -10 -10 -9 -8 -7 -7 -7 -7 -6 -6 -6 -6 -6 -5 -5 -5 -5 -4 ------- Run | Scr Mat Min Mat Mat Fac Low Low Dat Pro Fac Low Low Zio Pro Fac Ext Cet Fac Slots Evolved 12 | . . . 2 2 2 . . . . 2 . . . . 2 . . 2 Power . | . . . . . . . . . . . . . . . . . . . Propulsion 4 | . . . 1 1 1 . . . . . . . . . . . . 1 Utility 7 | . . . 1 . 1 . . . . 2 . . . . 2 . . 1 Weapon 1 | . . . . 1 . . . . . . . . . . . . . . Parts Attached 286 | 6 2 7 30 24 20 19 6 . 19 17 17 7 5 2 18 10 24 53 Power 16 | 1 . . 4 . . . . . 2 . 1 . . . . . 1 7 Engine 7 | 1 . . 4 . . . . . 1 . 1 . . . . . . . Core 6 | . . . . . . . . . . . . . . . . . 1 5 Reactor 3 | . . . . . . . . . 1 . . . . . . . . 2 Propulsion 55 | 2 . . 8 7 2 4 . . 3 3 5 1 . . 2 2 9 7 Treads 55 | 2 . . 8 7 2 4 . . 3 3 5 1 . . 2 2 9 7 Leg . | . . . . . . . . . . . . . . . . . . . Wheel . | . . . . . . . . . . . . . . . . . . . Hover . | . . . . . . . . . . . . . . . . . . . Flight . | . . . . . . . . . . . . . . . . . . . Utility 96 | 1 . 4 6 10 11 6 5 . 5 3 5 3 2 1 6 3 5 20 Device 54 | . . 4 3 3 6 4 4 . 4 1 4 2 2 . 3 3 1 10 Storage 5 | 1 . . 2 1 . . . . . . . . . . . . . 1 Processor 7 | . . . . . 2 . . . . . . . . . . . . 5 Hackware 7 | . . . . . 2 . . . . 1 . . . 1 3 . . . Protection 23 | . . . 1 6 1 2 1 . 1 1 1 1 . . . . 4 4 Artifact . | . . . . . . . . . . . . . . . . . . . Weapon 119 | 2 2 3 12 7 7 9 1 . 9 11 6 3 3 1 10 5 9 19 Energy Gun 18 | 1 1 1 . . . . . . . . 3 1 2 . 1 2 2 4 Energy Cannon 6 | . . . . . . . . . . 2 . . . . 4 . . . Ballistic Gun 53 | 1 . . 7 5 3 5 . . 4 4 1 . 1 . 5 1 5 11 Ballistic Cannon 4 | . . 1 1 . . . . . . . . . . . . 1 1 . Launcher 24 | . 1 1 4 1 1 3 1 . 2 3 . . . 1 . 1 1 4 Special Weapon 2 | . . . . . . . . . . . . 2 . . . . . . Impact Weapon 3 | . . . . 1 1 . . . . . 1 . . . . . . . Slashing Weapon . | . . . . . . . . . . . . . . . . . . . Piercing Weapon 9 | . . . . . 2 1 . . 3 2 1 . . . . . . . Special Melee Weapon . | . . . . . . . . . . . . . . . . . . . Unidentified Prototypes 14 | . . 2 1 2 . . . . 2 . . . 1 . 1 . 4 1 Corrupted Parts 11 | . . . . . . . . . . . . . . . . . 9 2 System Corruption 70 | . . . . . . . . . . . . . . . . . 61 9 Parts Lost 84 | . . . 11 3 1 3 . . 3 6 7 1 . 1 2 9 2 35 Power 10 | . . . 2 . . . . . . . 1 . . . . . . 7 Propulsion 29 | . . . 6 1 . 2 . . 2 3 4 1 . . 1 2 . 7 Utility 26 | . . . 1 2 1 . . . 1 1 . . . 1 . 4 1 14 Weapon 19 | . . . 2 . . 1 . . . 2 2 . . . 1 3 1 7 Highest Loss Streak 8 | . . . 2 1 1 1 . . 2 3 6 1 . 1 1 5 1 8 Average Slot Usage (%) 96 | . 85 96 96 99 99 97 99 100 99 97 98 100 99 98 99 88 89 81 Engine 6 | . 14 14 11 9 7 7 7 7 4 . 5 6 6 6 5 5 1 . Treads 32 | . 28 28 32 35 38 37 38 38 37 31 32 33 33 33 29 28 27 19 Device 11 | . . 10 17 1 6 8 7 7 6 12 17 20 20 18 9 11 14 10 Storage 7 | . 14 14 11 9 7 7 7 7 7 6 6 6 6 6 5 5 5 8 Processor 5 | . . . . . 5 7 7 7 7 6 6 6 6 6 5 5 5 10 Hackware 2 | . . . . . 2 . . . . 5 1 . . . 20 15 5 1 Protection 6 | . . . 2 15 6 5 6 7 7 5 7 6 6 6 2 . 6 9 Energy Gun 4 | . 6 12 2 . . . . . . . 8 13 12 13 5 3 8 1 Ballistic Gun 12 | . 14 4 12 25 20 16 20 15 17 16 9 6 5 4 6 4 2 12 Launcher 1 | . 7 1 1 . . 2 2 7 4 . . . . 1 . . . . Naked Turns . | . . . . . . . . . . . . . . . . . . . Heaviest Build 152 | 13 15 18 60 103 104 111 112 109 119 126 121 121 120 126 125 128 140 152 Greatest Support 216 | 40 40 40 63 80 100 111 111 111 111 103 104 104 104 104 114 113 188 216 Greatest Overweight (x) 2 | . . . 1 1 1 1 1 . 1 1 2 1 1 1 1 1 1 . Average Overweight (x) . | . . . . . . . . . . 1 1 1 1 1 1 . . . Largest Inventory Capacity 25 | 8 8 8 20 25 25 25 25 25 25 25 25 25 25 25 25 25 25 25 Average Capacity 23 | 7 8 8 19 23 25 25 25 25 25 25 25 25 25 25 25 25 25 25 Most Carried 25 | 1 6 8 20 25 25 25 25 24 25 25 23 25 25 25 25 24 25 25 Average Carried 21 | . 4 7 16 21 24 24 24 24 24 23 19 22 24 24 24 22 24 21 Final Capacity 25 | 8 8 8 20 25 25 25 25 25 25 25 25 25 25 25 25 25 25 25 Final Carried 25 | 1 6 8 19 25 25 25 24 24 24 22 22 25 25 25 23 24 24 21 Class Distribution -------------------- 37% | Scavenger-Tank 26% | Scavenger-Mutant 14% | Scavenger-Skirmisher 11% | Mutant 3% | Tank Dominant Class ---------------- Mutant | -10/Materials Mutant | -10/Mines Scavenger-Mutant | -9/Materials Tank | -8/Materials Tank | -7/Factory Scavenger-Skirmisher | -7/Lower Caves Scavenger-Skirmisher | -7/Lower Caves Scavenger-Mutant | -7/Data Miner Scavenger-Mutant | -6/Proximity Caves Scavenger-Tank | -6/Factory Scavenger-Tank | -6/Lower Caves Scavenger-Tank | -6/Lower Caves Scavenger-Tank | -6/Zion Scavenger-Tank | -5/Proximity Caves Hacker-Tank | -5/Factory Scavenger-Mutant | -5/Extension Scavenger-Tank | -5/Cetus Scavenger-Tank | -4/Factory Resources | -11 -10 -10 -9 -8 -7 -7 -7 -7 -6 -6 -6 -6 -6 -5 -5 -5 -5 -4 ----------- Run | Scr Mat Min Mat Mat Fac Low Low Dat Pro Fac Low Low Zio Pro Fac Ext Cet Fac Matter Collected 8878 | 192 6 357 1019 605 498 413 205 . 652 382 828 187 112 56 316 375 502 2173 Remotely . | . . . . . . . . . . . . . . . . . . . Salvage Created 10039 | . 148 333 1266 740 498 140 103 . 512 327 537 238 . 33 299 150 181 4534 Parts 531 | . 13 9 95 36 22 10 8 . 28 34 25 9 . . 18 6 4 214 Haulers Intercepted 14 | . 1 . 3 4 2 . . . . . . . . . . . . 4 Recyclers Shooed 5 | . . . 2 1 . . . . . . . . . . 1 . . 1 Parts Field Recycled . | . . . . . . . . . . . . . . . . . . . Retrieved Matter . | . . . . . . . . . . . . . . . . . . . Parts Self-Destructed 52 | . . . . . . 4 5 . 27 . 9 5 2 . . . . . Prevented 8 | . . . . . . . 2 . 6 . . . . . . . . . Kills | -11 -10 -10 -9 -8 -7 -7 -7 -7 -6 -6 -6 -6 -6 -5 -5 -5 -5 -4 ------- Run | Scr Mat Min Mat Mat Fac Low Low Dat Pro Fac Low Low Zio Pro Fac Ext Cet Fac Combat Hostiles Destroyed 187 | . 5 2 34 15 7 4 4 . 8 11 8 3 . 3 7 3 3 70 Guns 122 | . . . 19 15 7 3 . . 8 4 8 2 . 1 7 2 1 45 Cannons 7 | . . . 4 . . . . . . . . . . . . 1 2 . AOE 57 | . 5 2 11 . . 1 4 . . 7 . . . 2 . . . 25 Classes Destroyed 24 | . 5 1 4 1 1 2 . . 4 1 1 2 . . . . . 2 Worker 12 | . 3 . 3 1 . . . . . . . . . . . . . 5 Builder 7 | . . . 1 . . . . . . . . . . . . . . 6 Tunneler 3 | . . . . . . . . . . 3 . . . . . . . . Hauler 14 | . 1 . 3 4 2 . . . . . . . . . . . . 4 Recycler 7 | . . 1 2 1 1 . . . . . . . . . . . . 2 Minesweeper 1 | . . . . . . . . . 1 . . . . . . . . . Mechanic 1 | . . . 1 . . . . . . . . . . . . . . . Operator 3 | . . . 1 1 . . . . . . . . . . . . . 1 Watcher 10 | . 1 . 3 1 1 . . . . . . . . . . . . 4 Swarmer 36 | . 3 . 14 . . 1 4 . . 6 . 1 . 1 . . . 6 Grunt 62 | . 2 2 16 11 3 . . . 1 . . 1 . 1 . 1 2 22 Duelist 1 | . . . . . . . . . . . . . . . . . . 1 Protector 5 | . . . . . . . . . 2 . . . . . . . . 3 Sentry 22 | . . . 4 3 1 1 . . 1 4 . 1 . 1 . 2 . 4 Demolisher 3 | . . . . . . . . . 3 . . . . . . . . . Specialist 11 | . . . . . . . . . . . 2 . . . . . . 9 Hunter 15 | . . . . 1 2 . . . . . 1 . . . . . . 11 Programmer 22 | . . . . . 1 . . . . 1 . . . . 7 . . 13 Heavy 1 | . . . . . . . . . . . . . . . . . . 1 Behemoth 1 | . . . . . . . . . 1 . . . . . . . . . Cetus Guard 1 | . . . . . . . . . . . . . . . . . 1 . Samaritan 1 | . . . . . . . . . . . . 1 . . . . . . Thief 1 | . . . . . . 1 . . . . . . . . . . . . Thug 5 | . . 1 . . . . . . . . 4 . . . . . . . Savage 1 | . . . . . . . . . . . . 1 . . . . . . Mutant 2 | . . . . . . 1 . . . . 1 . . . . . . . Best Kill Streak 15 | . 5 2 6 6 3 2 4 . 2 7 3 2 . 3 2 2 2 15 Combat Bots Only 12 | . 3 2 5 4 3 2 4 . 2 4 3 2 . 3 2 2 2 12 Max Kills in Single Turn 8 | . 3 1 2 1 1 2 2 . 1 5 1 1 . 1 1 1 1 8 Gunslinging 1 | . . . 1 . . . . . . . . . . . . . . 1 Exploded 4 | . 2 1 2 . . 1 2 . . 2 . . . 1 . . . 4 Melee . | . . . . . . . . . . . . . . . . . . . Uniques/NPCs Destroyed 1 | . . 1 . . . . . . . . . . . . . . . . YI-UF0 (-10/Mines) Combat | -11 -10 -10 -9 -8 -7 -7 -7 -7 -6 -6 -6 -6 -6 -5 -5 -5 -5 -4 -------- Run | Scr Mat Min Mat Mat Fac Low Low Dat Pro Fac Low Low Zio Pro Fac Ext Cet Fac Damage Taken 19002 | . 166 135 1952 1248 292 579 146 . 657 1279 867 215 . 144 674 987 458 9203 Core 1600 | . . . 246 193 14 . 5 . 6 85 79 10 . 14 59 213 87 589 Absorbed by Shields 1416 | . . . . 4 83 68 . . . 320 85 83 . 52 242 228 169 82 Reduced by Siege Mode 523 | . . . . . . . . . . . . . . . . . . 523 Core Remaining (%) 77 | 100 . 100 38 64 . . . . 96 . . . . 77 . . 64 . Volleys Fired 632 | . 15 22 141 45 20 15 5 . 59 31 21 14 1 6 40 19 16 162 Largest 3 | . 2 2 2 3 3 3 1 . 3 3 3 3 3 2 3 3 3 3 Hottest 240 | . 60 79 79 75 75 75 36 . 73 140 180 180 180 150 240 193 201 240 Shots Fired 1441 | . 21 41 263 133 56 27 5 . 164 70 55 44 3 8 85 38 42 386 Gun 1256 | . 12 32 195 133 54 18 . . 164 55 55 44 3 4 68 23 26 370 Cannon 114 | . . 6 55 . . . . . . 9 . . . . 17 11 16 . Launcher 71 | . 9 3 13 . 2 9 5 . . 6 . . . 4 . 4 . 16 Special . | . . . . . . . . . . . . . . . . . . . Kinetic 1128 | . 6 19 216 133 54 18 . . 164 55 36 15 1 . 41 16 17 337 Thermal 238 | . 6 19 34 . . . . . . 9 19 29 2 4 44 14 25 33 Explosive 61 | . 9 3 13 . . 6 . . . 6 . . . 4 . 4 . 16 Electromagnetic 14 | . . . . . 2 3 5 . . . . . . . . 4 . . Robot Hit Streak 29 | . 3 6 29 9 9 5 . . 10 6 20 14 . 11 16 8 9 18 Robot Miss Streak 8 | . 2 2 4 8 5 3 1 . 4 3 3 3 . . 6 3 2 6 Penetration Max 1 | . . . . . . . . . . . . . . . . . . 1 Secondary Targets 27 | . . . 3 5 . . . . . . 2 2 . . . . . 15 Max Gunslinging Chain 1 | . . . 1 1 . . . . . . 1 1 . . . . . 1 Shots Hit Robots 944 | . 8 30 180 98 39 16 . . 99 39 36 29 . 6 44 27 29 264 Core Hits 630 | . 18 14 72 51 24 12 5 . 39 23 19 10 . 7 32 21 9 274 Critical Kills 27 | . . . 1 . 1 . . . 1 1 . . . . . . . 23 Critical Parts Destroyed 33 | . . . 1 1 . . . . . . . . . . . . . 31 Critical Strikes 74 | . . . 3 1 1 . . . 2 1 . 2 . . 2 1 5 56 Burn 5 | . . . . . . . . . . . . 2 . . 2 . 1 . Destroy 63 | . . . 2 1 1 . . . 2 1 . . . . . . . 56 Blast 5 | . . . 1 . . . . . . . . . . . . . 4 . Corrupt 1 | . . . . . . . . . . . . . . . . 1 . . Melee Attacks 42 | . . . . 2 10 10 . . 5 14 1 . . . . . . . Impact 5 | . . . . 2 2 . . . . . 1 . . . . . . . Slashing . | . . . . . . . . . . . . . . . . . . . Piercing 37 | . . . . . 8 10 . . 5 14 . . . . . . . . Sneak Attacks 1 | . . . . . 1 . . . . . . . . . . . . . Combat Hostiles . | . . . . . . . . . . . . . . . . . . . Follow-up Attacks . | . . . . . . . . . . . . . . . . . . . Damage Inflicted 30863 | . 719 498 3347 2049 766 577 291 . 1708 2141 774 592 . 813 1043 880 739 13926 Guns 17628 | . 73 289 1843 1642 593 242 . . 1708 618 774 592 . 62 1043 451 314 7384 Cannons 1740 | . . 89 779 . . . . . . 119 . . . . . 328 425 . Explosions 11425 | . 646 118 725 402 110 335 291 . . 1404 . . . 751 . 101 . 6542 Melee 63 | . . . . . 63 . . . . . . . . . . . . . Ramming 7 | . . 2 . 5 . . . . . . . . . . . . . . Kinetic 16715 | . 40 215 2314 1642 593 242 . . 1708 618 564 175 . . 704 338 425 7137 Thermal 3394 | . 33 163 308 402 . . 123 . . 119 210 417 . 62 339 361 314 543 Explosive 10268 | . 646 118 725 . . 296 . . . 1404 . . . 751 . 101 . 6227 Electromagnetic 416 | . . . . . 110 39 168 . . . . . . . . 80 . 19 Impact 63 | . . . . . 63 . . . . . . . . . . . . . Slashing . | . . . . . . . . . . . . . . . . . . . Piercing . | . . . . . . . . . . . . . . . . . . . Highest Corruption 91 | . 1 1 . . . . . . . 5 7 7 7 . 10 30 91 20 Average Corruption 9 | . 1 1 . . . . . . . 2 6 7 7 . 4 18 37 11 Corruption Purged 5 | . . . . . . . . . . . . . . . . . . 5 Effects 281 | . 2 4 . . . . . . . . 56 59 5 . 10 54 32 59 Message Errors 76 | . 1 1 . . . . . . . . 14 18 1 . 5 16 4 16 Matter Fused 64 | . . . . . . . . . . . 15 14 1 . . 13 8 13 Heat Flow Errors 37 | . . . . . . . . . . . 11 6 1 . . 8 6 5 Energy Discharges 28 | . 1 3 . . . . . . . . 9 2 . . 1 3 4 5 Data Loss (minor) 33 | . . . . . . . . . . . 3 11 2 . 3 7 4 3 Data Loss (major) 12 | . . . . . . . . . . . 3 4 . . 1 2 1 1 Misfires 11 | . . . . . . . . . . . . 3 . . . 3 3 2 Alerts 3 | . . . . . . . . . . . . . . . . 1 1 1 Misdirections 1 | . . . . . . . . . . . . . . . . . . 1 Weapon Failures 16 | . . . . . . . . . . . 1 1 . . . 1 1 12 Overload Shots 2 | . . . . . . . . . . . . . . . . . . 2 Overflow Damage 447 | . 4 . 41 85 28 11 21 . 35 9 . . . 85 . 31 . 97 Projectiles . | . . . . . . . . . . . . . . . . . . . Explosions 424 | . 4 . 41 85 5 11 21 . 35 9 . . . 85 . 31 . 97 Melee 23 | . . . . . 23 . . . . . . . . . . . . . Knockbacks 8 | . . 1 5 . 1 . . . . . . . . . . . 1 . Impact 1 | . . . . . 1 . . . . . . . . . . . . . Kinetic 7 | . . 1 5 . . . . . . . . . . . . . 1 . Secondary . | . . . . . . . . . . . . . . . . . . . Self-Inflicted Damage 1114 | . 48 92 63 172 . 138 35 . 109 . . . . . . . . 457 Shots 37 | . 2 3 3 2 . 4 3 . 1 . . . . . . . . 19 Rammed 1 | . . 1 . . . . . . . . . . . . . . . . Targets Rammed 2 | . . 1 . 1 . . . . . . . . . . . . . . Kicked . | . . . . . . . . . . . . . . . . . . . Crushed 1 | . . . . 1 . . . . . . . . . . . . . . Highest Temperature 444 | . 10 54 22 204 . 42 . . 216 358 262 278 135 4 240 327 444 346 Average Temperature 83 | . 7 24 5 71 . 21 . . 65 74 81 109 51 3 63 107 156 92 Received Heat Transfer 2874 | . 15 45 750 459 32 114 . . 84 77 225 79 . 36 . 107 93 758 Effects 10 | . . . . . . . . . . . . . . . . . 2 8 Energy Bleed 3 | . . . . . . . . . . . . . . . . . . 3 Interference 5 | . . . . . . . . . . . . . . . . . . 5 Matter Decay 1 | . . . . . . . . . . . . . . . . . 1 . Damage (minor) 1 | . . . . . . . . . . . . . . . . . 1 . Siege Activations 15 | . . . . . . . . . . . . . . . . . . 15 Total Turns 304 | . . . . . . . . . . . . . . . . . . 304 Longest Duration 54 | . . . . . . . . . . . . . . . . . . 54 Robots Corrupted . | . . . . . . . . . . . . . . . . . . . Combat Hostiles . | . . . . . . . . . . . . . . . . . . . Parts Fried 2 | . . . . . 1 . 1 . . . . . . . . . . . Impact Corruptions 1 | . . . . . 1 . . . . . . . . . . . . . Robots Melted 1 | . . . . . . . . . . . . 1 . . . . . . Combat Hostiles 1 | . . . . . . . . . . . . 1 . . . . . . Parts Melted 9 | . . . . . . . . . . . 3 1 . . 4 . . 1 Heat Transferred 5164 | . 75 375 700 300 . . 150 . . 75 370 888 . 111 629 311 647 533 Parts Sabotaged . | . . . . . . . . . . . . . . . . . . . Parts Stolen 1 | . . . . . . 1 . . . . . . . . . . . . Parts Stripped . | . . . . . . . . . . . . . . . . . . . Power Chain Reactions 3 | . . . . . . . 3 . . . . . . . . . . . Missiles Intercepted . | . . . . . . . . . . . . . . . . . . . Alert | -11 -10 -10 -9 -8 -7 -7 -7 -7 -6 -6 -6 -6 -6 -5 -5 -5 -5 -4 ------- Run | Scr Mat Min Mat Mat Fac Low Low Dat Pro Fac Low Low Zio Pro Fac Ext Cet Fac Peak Influence 2396 | . 215 133 626 577 278 . . . . 182 . . . . 144 445 335 2396 Initial 263 | . . 83 . 263 112 . . . . 19 . . . . . 27 208 130 Average 246 | . 116 34 367 372 107 . . . . 72 . . . . 47 140 221 629 Maximum Alert Level 5 | . 1 . 2 2 1 . . . . . . . . . . 2 1 5 Low Security (%) 65 | 100 83 100 26 . 89 . . . . 100 . . . . 100 80 45 52 Level 1 15 | . 16 . 16 67 10 . . . . . . . . . . 10 54 5 Level 2 13 | . . . 56 32 . . . . . . . . . . . 8 . 7 Level 3 . | . . . . . . . . . . . . . . . . . . 5 Level 4 2 | . . . . . . . . . . . . . . . . . . 14 Level 5 2 | . . . . . . . . . . . . . . . . . . 15 High Security . | . . . . . . . . . . . . . . . . . . . Max Security . | . . . . . . . . . . . . . . . . . . . Squads Dispatched 44 | . . . 5 . 5 . . . . 4 . . . . 5 4 . 21 Investigation 3 | . . . 1 . 1 . . . . . . . . . . 1 . . Extermination 11 | . . . . . 1 . . . . 2 . . . . 3 . . 5 Reinforcement 22 | . . . 3 . 2 . . . . 2 . . . . 2 3 . 10 Assault 5 | . . . 1 . 1 . . . . . . . . . . . . 3 Garrison 3 | . . . . . . . . . . . . . . . . . . 3 Intercept . | . . . . . . . . . . . . . . . . . . . Construction Impeded 7 | . . . 1 . 1 . . . . . . . . . . 2 . 3 Haulers Reinforced 2 | . . . . . . . . . . . . . . . . . . 2 Active Scanning Responses . | . . . . . . . . . . . . . . . . . . . Cargo Convoy Interrupts 1 | . . . . . . . . . . . . . . . . . . 1 Stealth | -11 -10 -10 -9 -8 -7 -7 -7 -7 -6 -6 -6 -6 -6 -5 -5 -5 -5 -4 --------- Run | Scr Mat Min Mat Mat Fac Low Low Dat Pro Fac Low Low Zio Pro Fac Ext Cet Fac Distress Signals 123 | . 3 . 2 2 . . . . 105 . . . . . . 3 2 6 Communications Jammed 4 | . . . . . . . . . . . . . . . . . . 4 Distress Signals . | . . . . . . . . . . . . . . . . . . . Times Spotted 318 | . 12 2 57 36 9 9 5 . 13 10 9 3 . 3 11 27 14 98 Peak Tracking Total 11 | . 4 2 6 7 3 3 4 . 2 4 3 3 . 3 2 9 5 11 Tactical Retreats 19 | . 2 . 4 2 . 4 . . . 1 . . . . 1 3 . 2 Traps | -11 -10 -10 -9 -8 -7 -7 -7 -7 -6 -6 -6 -6 -6 -5 -5 -5 -5 -4 ------- Run | Scr Mat Min Mat Mat Fac Low Low Dat Pro Fac Low Low Zio Pro Fac Ext Cet Fac Traps Triggered 10 | . 2 . 1 . 2 . . . . . . . . . . 2 . 3 Indirectly 1 | . . . . . . . . . . . . . . . . . . 1 Trap Hack Attempts . | . . . . . . . . . . . . . . . . . . . Triggered . | . . . . . . . . . . . . . . . . . . . Disarmed . | . . . . . . . . . . . . . . . . . . . Reprogrammed . | . . . . . . . . . . . . . . . . . . . Reused 2 | . . . . . . . . . 2 . . . . . . . . . Traps Extracted . | . . . . . . . . . . . . . . . . . . . Installed 4 | . . . . . . . . . 4 . . . . . . . . . Triggered 4 | . . . . . 1 . 1 . 2 . . . . . . . . . Machines | -11 -10 -10 -9 -8 -7 -7 -7 -7 -6 -6 -6 -6 -6 -5 -5 -5 -5 -4 ---------- Run | Scr Mat Min Mat Mat Fac Low Low Dat Pro Fac Low Low Zio Pro Fac Ext Cet Fac Machines Disabled 50 | . 1 . 5 6 . 4 . . 5 5 1 . . . 1 3 1 18 Max in Single Turn 5 | . 1 . 1 3 . 2 . . 2 2 1 . . . 1 1 1 5 Garrison Access 5 | . . . . 1 1 . . . . 1 . . . . . . . 2 Machines Sabotaged . | . . . . . . . . . . . . . . . . . . . Garrisons Compromised 1 | . . . . . 1 . . . . . . . . . . . . . Overloaded Fab Kills . | . . . . . . . . . . . . . . . . . . . Hacking | -11 -10 -10 -9 -8 -7 -7 -7 -7 -6 -6 -6 -6 -6 -5 -5 -5 -5 -4 --------- Run | Scr Mat Min Mat Mat Fac Low Low Dat Pro Fac Low Low Zio Pro Fac Ext Cet Fac Machines Accessed 31 | . 1 1 4 4 4 1 1 3 . 4 . 1 . . 5 1 . 1 Terminals 16 | . 1 . 3 3 1 . . . . 3 . . . . 4 1 . . Fabricators 3 | . . . . . 3 . . . . . . . . . . . . . Repair Stations . | . . . . . . . . . . . . . . . . . . . Recycling Units 1 | . . . 1 . . . . . . . . . . . . . . . Scanalyzers 1 | . . . . . . . . . . . . . . . 1 . . . Garrison Access 3 | . . . . 1 . . . . . 1 . . . . . . . 1 Total Hacks 95 | . 3 1 11 14 12 1 1 26 . 6 . 1 . . 13 4 . 2 Successful 59 | . 1 1 10 6 3 1 1 26 . 3 . 1 . . 6 . . . Failed 36 | . 2 . 1 8 9 . . . . 3 . . . . 7 4 . 2 Catastrophic 6 | . . . . 1 . . . . . 2 . . . . . 1 . 2 Database Lockouts . | . . . . . . . . . . . . . . . . . . . Manual 47 | . 3 . 8 10 10 . . . . 3 1 . . . 8 4 . . Terminals 44 | . 3 . 9 11 2 . . . . 4 . . . . 11 4 . . Fabricators 10 | . . . . . 10 . . . . . . . . . . . . . Repair Stations . | . . . . . . . . . . . . . . . . . . . Recycling Units 2 | . . . 2 . . . . . . . . . . . . . . . Scanalyzers 2 | . . . . . . . . . . . . . . . 2 . . . Garrison Access 7 | . . . . 3 . . . . . 2 . . . . . . . 2 Terminal Hacks 45 | . 1 1 6 3 1 1 1 26 . 1 . 1 . . 3 . . . Record 6 | . . . . . . . . 6 . . . . . . . . . . Part Schematic 12 | . . . 1 . . . . 11 . . . . . . . . . . Robot Schematic 6 | . . . . . . . . 6 . . . . . . . . . . Robot Analysis 2 | . 1 . 1 . . . . . . . . . . . . . . . Prototype ID Bank 5 | . . . 2 . . . . 3 . . . . . . . . . . Open Door 5 | . . 1 . . . 1 1 . . . . 1 . . 1 . . . Branch Access Points 3 | . . . 1 . 1 . . . . . . . . . 1 . . . Terminal Index 2 | . . . 1 . . . . . . . . . . . 1 . . . Alert Level 1 | . . . . . . . . . . 1 . . . . . . . . Unreport Threat 1 | . . . . 1 . . . . . . . . . . . . . . Locate Traps 1 | . . . . 1 . . . . . . . . . . . . . . Zone Layout 1 | . . . . 1 . . . . . . . . . . . . . . Fabricator Hacks 1 | . . . . . 1 . . . . . . . . . . . . . Network Status 1 | . . . . . 1 . . . . . . . . . . . . . Repair Station Hacks . | . . . . . . . . . . . . . . . . . . . Recycling Unit Hacks 1 | . . . 1 . . . . . . . . . . . . . . . Retrieve Components 1 | . . . 1 . . . . . . . . . . . . . . . Scanalyzer 1 | . . . . . . . . . . . . . . . 1 . . . Insert Component 1 | . . . . . . . . . . . . . . . 1 . . . Garrison Access Hacks 2 | . . . . 1 . . . . . 1 . . . . . . . . Seal Access 2 | . . . . 1 . . . . . 1 . . . . . . . . Unauthorized Hacks 9 | . . . 3 2 1 . . . . 1 . . . . 2 . . . Terminals 8 | . . . 2 2 1 . . . . 1 . . . . 2 . . . Assimilate 1 | . . . 1 . . . . . . . . . . . . . . . Botnet 4 | . . . . 1 1 . . . . 1 . . . . 1 . . . Operators 3 | . . . 1 1 . . . . . . . . . . 1 . . . Fabricators . | . . . . . . . . . . . . . . . . . . . Repair Stations . | . . . . . . . . . . . . . . . . . . . Recycling Units 1 | . . . 1 . . . . . . . . . . . . . . . Recyclers 1 | . . . 1 . . . . . . . . . . . . . . . Scanalyzers . | . . . . . . . . . . . . . . . . . . . Garrison Access . | . . . . . . . . . . . . . . . . . . . Data Cores Recovered 1 | . . . . 1 . . . . . . . . . . . . . . Used . | . . . . . . . . . . . . . . . . . . . Hacking Detections 21 | . 1 . 2 4 4 . . . . 4 . . . . 4 1 . 1 Full Trace Events . | . . . . . . . . . . . . . . . . . . . Feedback Events . | . . . . . . . . . . . . . . . . . . . Feedback Blocked . | . . . . . . . . . . . . . . . . . . . Robot Schematics Acquired 10 | . . . . . . . . 6 . . . . 4 . . . . . Robots Built . | . . . . . . . . . . . . . . . . . . . Authchips . | . . . . . . . . . . . . . . . . . . . Time . | . . . . . . . . . . . . . . . . . . . Total Robot Build Rating . | . . . . . . . . . . . . . . . . . . . Part Schematics Acquired 25 | . . . 1 . . . . 11 . . . . 13 . . . . . Parts Built . | . . . . . . . . . . . . . . . . . . . Authchips . | . . . . . . . . . . . . . . . . . . . Time . | . . . . . . . . . . . . . . . . . . . Total Part Build Rating . | . . . . . . . . . . . . . . . . . . . Parts Repaired . | . . . . . . . . . . . . . . . . . . . Time . | . . . . . . . . . . . . . . . . . . . Parts Recycled . | . . . . . . . . . . . . . . . . . . . Recycled Matter . | . . . . . . . . . . . . . . . . . . . Retrieved Matter . | . . . . . . . . . . . . . . . . . . . Retrieved Components 7 | . . . 7 . . . . . . . . . . . . . . . Parts Scanalyzed . | . . . . . . . . . . . . . . . . . . . Part Schematics Acquired . | . . . . . . . . . . . . . . . . . . . Parts Damaged . | . . . . . . . . . . . . . . . . . . . Bothacking | -11 -10 -10 -9 -8 -7 -7 -7 -7 -6 -6 -6 -6 -6 -5 -5 -5 -5 -4 ------------ Run | Scr Mat Min Mat Mat Fac Low Low Dat Pro Fac Low Low Zio Pro Fac Ext Cet Fac Used RIF Installer . | . . . . . . . . . . . . . . . . . . . Robots Hacked . | . . . . . . . . . . . . . . . . . . . Non-combat . | . . . . . . . . . . . . . . . . . . . Combat . | . . . . . . . . . . . . . . . . . . . Robot Hacks Applied . | . . . . . . . . . . . . . . . . . . . Relay Couplers Released 15 | . . . . . 3 . . . . 3 . . . . 3 . . 6 Machine Destruction 6 | . . . . . 3 . . . . . . . . . . . . 3 Programmers 9 | . . . . . . . . . . 3 . . . . 3 . . 3 Fabnet Peak Effective % . | . . . . . . . . . . . . . . . . . . . Robots Rewired 20 | . . . . . . 4 . . . . . . . . . 16 . . Allies Hacked . | . . . . . . . . . . . . . . . . . . . Hacks Repelled . | . . . . . . . . . . . . . . . . . . . Allies | -11 -10 -10 -9 -8 -7 -7 -7 -7 -6 -6 -6 -6 -6 -5 -5 -5 -5 -4 -------- Run | Scr Mat Min Mat Mat Fac Low Low Dat Pro Fac Low Low Zio Pro Fac Ext Cet Fac Total Allies 31 | . . . 1 . . 4 . . 1 . . . . . . 25 . . Largest Group 11 | . . . 1 . . 4 4 2 2 . . . . . . 11 11 1 Highest-Rated Group 437 | . . . 10 . . 124 124 62 95 . . . . . . 437 427 131 Highest-Rated Ally 159 | . . . 10 . . 31 31 31 95 . . . . . . 159 159 131 Total Orders 17 | . . . 3 2 . 2 4 2 2 . . . . . . 2 . . STAY 5 | . . . . . . 1 1 1 . . . . . . . 2 . . FOLLOW 3 | . . . . . . 1 1 1 . . . . . . . . . . GUARD 1 | . . . . . . . 1 . . . . . . . . . . . EXPLORE 1 | . . . 1 . . . . . . . . . . . . . . . RETURN 7 | . . . 2 2 . . 1 . 2 . . . . . . . . . Ally Attacks 382 | . . . 35 14 7 . 48 . 28 . . . . . . 183 67 . Total Damage 7272 | . . . 151 39 51 . 652 . 321 . . . . . . 4192 1866 . Kills 45 | . . . 4 . . . 4 . 1 . . . . . . 23 13 . Allies Corrupted 1 | . . . . . . . . . . . . . . . . 1 . . Allies Melted . | . . . . . . . . . . . . . . . . . . . Intel | -11 -10 -10 -9 -8 -7 -7 -7 -7 -6 -6 -6 -6 -6 -5 -5 -5 -5 -4 ------- Run | Scr Mat Min Mat Mat Fac Low Low Dat Pro Fac Low Low Zio Pro Fac Ext Cet Fac Robot Analysis Total 2 | . 1 . 1 . . . . . . . . . . . . . . . Derelict Logs Recovered 12 | . . 2 . . . 1 2 . 2 . 1 2 2 . . . . . Drone Launches 42 | . . 3 12 9 3 . 6 . 9 . . . . . . . . . Drone Recoveries 39 | . . . 15 9 3 . 6 . 6 . . . . . . . . . Exploration | -11 -10 -10 -9 -8 -7 -7 -7 -7 -6 -6 -6 -6 -6 -5 -5 -5 -5 -4 ------------- Run | Scr Mat Min Mat Mat Fac Low Low Dat Pro Fac Low Low Zio Pro Fac Ext Cet Fac Turns Passed 28577 | 73 396 1457 1776 1270 1266 1857 2024 125 4032 1503 2289 1838 3108 855 933 1204 571 2000 Spaces Moved 11445 | 43 220 857 682 484 541 924 1194 77 1233 473 742 740 1059 355 334 510 211 766 Core 4 | 4 . . . . . . . . . . . . . . . . . . Treads 11441 | 39 220 857 682 484 541 924 1194 77 1233 473 742 740 1059 355 334 510 211 766 Legs . | . . . . . . . . . . . . . . . . . . . Wheels . | . . . . . . . . . . . . . . . . . . . Hover . | . . . . . . . . . . . . . . . . . . . Flight . | . . . . . . . . . . . . . . . . . . . Fastest Speed 50 | 50 160 160 160 160 160 160 160 160 160 240 232 235 236 236 235 160 155 160 Average Speed 198 | 149 160 160 164 206 202 181 165 160 195 240 236 235 236 236 236 205 222 160 Slowest Speed 320 | 160 160 160 240 240 240 240 240 160 240 240 320 236 236 236 239 240 240 166 Overloaded Moves . | . . . . . . . . . . . . . . . . . . . Propulsion Burnouts . | . . . . . . . . . . . . . . . . . . . Robots Hopped 1 | . . . . . . . 1 . . . . . . . . . . . Cave-ins Triggered 2 | . . . . . . . . . . . . . . . . 2 . . Exploration Rate (%) 56 | 4 52 97 64 42 13 81 95 69 77 16 84 88 83 58 9 64 56 22 Regions Visited 18 Branch Regions 11 Pre-discovered Areas 2 | . . . . . . . . 1 1 . . . . . . . . . Known Exits Taken 15 | . . 1 1 . 1 1 1 1 1 1 1 1 1 1 1 1 1 . Unknown Exits Taken 3 | 1 1 . . 1 . . . . . . . . . . . . . . Scrap Searched 22 | . . 1 . . . 3 9 . 2 . . 5 1 1 . . . . Spaces Dug 91 | . 5 . 8 1 6 8 13 . . 11 . . . . 14 . . 25 Terrain Destroyed 868 | . 26 26 70 29 6 28 13 . . 98 . 1 . 51 17 171 4 328 Melee 21 | . . . . 1 6 8 . . . 6 . . . . . . . . Projectile 116 | . . . 3 . . . . . . 5 . 1 . . 17 2 4 84 AOE 729 | . 26 26 67 28 . 20 13 . . 87 . . . 51 . 169 . 242 Terrain Rammed . | . . . . . . . . . . . . . . . . . . . Walls Destroyed . | . . . . . . . . . . . . . . . . . . . Machines Disabled . | . . . . . . . . . . . . . . . . . . . Actions | -11 -10 -10 -9 -8 -7 -7 -7 -7 -6 -6 -6 -6 -6 -5 -5 -5 -5 -4 --------- Run | Scr Mat Min Mat Mat Fac Low Low Dat Pro Fac Low Low Zio Pro Fac Ext Cet Fac Total 16125 | 49 242 902 1082 654 655 1064 1233 79 2784 778 1237 805 1667 364 403 631 281 1215 Wait 3348 | . 1 2 184 56 50 80 24 3 1420 235 439 29 592 . 4 27 . 202 Move 11423 | 42 219 856 681 483 540 923 1191 76 1232 472 741 739 1058 354 333 507 210 766 Hop 1 | . . . . . . . 1 . . . . . . . . . . . Pick Up 160 | 1 5 8 28 22 6 2 1 . 19 5 12 7 4 1 3 4 11 21 Fast Attach 64 | 6 . 1 1 5 2 2 1 . 4 1 2 4 3 1 4 4 9 14 Attach 100 | . . 1 15 8 6 4 . . 6 5 9 3 . . 5 3 10 25 Detach 17 | . . . . . 3 . . . 2 . 1 2 . . . . 3 6 Swap 122 | . 2 5 14 11 12 13 5 . 9 11 6 . 2 1 9 3 5 14 Drop 133 | . . 6 18 21 6 2 5 . 24 4 5 7 7 1 5 . 17 5 Fire 632 | . 15 22 141 45 20 15 5 . 59 31 21 14 1 6 40 19 16 162 Melee 42 | . . . . 2 10 10 . . 5 14 1 . . . . . . . Ram . | . . . . . . . . . . . . . . . . . . . Kick . | . . . . . . . . . . . . . . . . . . . Crush 2 | . . 1 . 1 . . . . . . . . . . . . . . Escape Stasis 8 | . . . . . . . . . . . . . . . . 8 . . Rewire 69 | . . . . . . 13 . . . . . . . . . 56 . . Trap 4 | . . . . . . . . . 4 . . . . . . . . . Miscellaneous . | . . . . . . . . . . . . . . . . . . . Route ------- -11/Scrapyard -10/Materials (discovered 2 exits: *Mat / *Min) -10/Mines (discovered 2 exits: *Mat x2) -9/Materials (discovered 4 exits: *Mat x3 / *Min) -8/Materials -7/Factory (discovered 2 exits: *Low x2) -7/Lower Caves -7/Lower Caves (discovered 2 exits: *Fac / *Dat) -7/Data Miner -6/Proximity Caves -6/Factory (discovered 4 exits: *Fac x2 / *Low x2) -6/Lower Caves -6/Lower Caves (discovered 2 exits: *Fac / *Zio) -6/Zion -5/Proximity Caves -5/Factory (discovered 4 exits: Upp x2 / *Ext x2) -5/Extension (discovered 2 exits: *Fac / *Cet) -5/Cetus (discovered 2 exits: *Fac / *Arc) -4/Factory (discovered 1 exit: *Res) History --------- Turn | Location | Event 7 | -11/Scrapyard | Discovered new exit (range 15) 74 | -11/Scrapyard | Entered Materials 249 | -10/Materials | Discovered new exit (range 10) 305 | -10/Materials | Build established: Mutant 374 | -10/Materials | Discovered new exit (range 7) 470 | -10/Materials | Entered Mines 662 | -10/Mines | Met a Derelict bent on vengeance 726 | -10/Mines | YI-UF0 nonchalantly dropped a Grenade Launcher on the ground 771 | -10/Mines | Destroyed YI-UF0 905 | -10/Mines | A weapon hastily lodged in a ceiling crevice suddenly fell to the ground 923 | -10/Mines | Identified exit to Materials 938 | -10/Mines | Found a damaged Exp. Sensor Array with a note attached 943 | -10/Mines | Found Prototype Device 1321 | -10/Mines | Discovered exit to Materials (range 5) 1395 | -10/Mines | Learned 8 Materials zone layouts 1397 | -10/Mines | Found the Drone Emporium 1405 | -10/Mines | Found Prototype Device 1415 | -10/Mines | Identified Thief Drone Bay 1417 | -10/Mines | Identified Exp. Sensor Array 1927 | -10/Mines | Entered Materials 1927 | -9/Materials | Accompanied by 3 allies 1927 | -9/Materials | Evolved 2 slots: Propulsion x1, Utility x1 1928 | -9/Materials | Identified exit to Materials 2314 | -9/Materials | Identified exit to Mines 2957 | -9/Materials | Build established: Scavenger-Mutant 2963 | -9/Materials | Discovered exit to Materials (range 5) 3213 | -9/Materials | Discovered exit to Materials (range 14) 3260 | -9/Materials | Core integrity fell below 50% 3527 | -9/Materials | First assault squad dispatched 3703 | -9/Materials | Entered another Materials area 3703 | -8/Materials | Evolved 2 slots: Propulsion x1, Weapon x1 4106 | -8/Materials | Build established: Scavenger-Tank 4443 | -8/Materials | Build established: Tank 4878 | -8/Materials | Discovered new exit (range 8) 4973 | -8/Materials | Entered Factory 4973 | -7/Factory | Evolved 2 slots: Propulsion x1, Utility x1 5007 | -7/Factory | Identified exit to Lower Caves 6239 | -7/Factory | Entered Lower Caves 6249 | -7/Lower Caves | Attracted the attention of an 0b10 checkpoint 6552 | -7/Lower Caves | Spotted B-75 Beast 6611 | -7/Lower Caves | Adv. EMP Blaster stolen by Master Thief 6850 | -7/Lower Caves | Build established: Scavenger-Mutant 7150 | -7/Lower Caves | Learned 8 Factory zone layouts 7244 | -7/Lower Caves | Attacked by a delusional Derelict stockpiling Unaware 7679 | -7/Lower Caves | Build established: Scavenger-Skirmisher 7907 | -7/Lower Caves | Encountered a Warlord checkpoint 7999 | -7/Lower Caves | Discovered new exit (range 12) 8095 | -7/Lower Caves | Identified exit to Lower Caves 8096 | -7/Lower Caves | Entered another Lower Caves area 8096 | -7/Lower Caves | Accompanied by 4 allies 8189 | -7/Lower Caves | Discovered new exit (range 9) 8207 | -7/Lower Caves | Identified exit to Factory 8511 | -7/Lower Caves | Learned Factory stockpile data 8517 | -7/Lower Caves | Encountered a Warlord checkpoint 8737 | -7/Lower Caves | Learned Factory stockpile data 9775 | -7/Lower Caves | Spotted B-75 Beast 9788 | -7/Lower Caves | Allies destroyed B-75 Beast 9831 | -7/Lower Caves | Build established: Scavenger-Mutant 10109 | -7/Lower Caves | Discovered new exit (range 5) 10117 | -7/Lower Caves | Identified exit to Data Miner 10120 | -7/Lower Caves | Entered Data Miner 10120 | -7/Data Miner | Accompanied by 2 allies 10120 | -7/Data Miner | Discovered new exit (range 6) 10151 | -7/Data Miner | Met Data Miner 10191 | -7/Data Miner | Learned location of Section 7 (-3) 10191 | -7/Data Miner | Acquired the access code to Warlord's prototype stash 10205 | -7/Data Miner | Received God Mode back door access code from Data Miner 10240 | -7/Data Miner | Identified exit to Proximity Caves 10245 | -7/Data Miner | Entered Proximity Caves 10245 | -6/Proximity Caves | Accompanied by 2 allies 10303 | -6/Proximity Caves | Learned location of Extension (-5) 11703 | -6/Proximity Caves | Attracted the attention of an 0b10 checkpoint 11704 | -6/Proximity Caves | Escorted by Enhanced Grunt 12850 | -6/Proximity Caves | Spotted B-75 Beast 12900 | -6/Proximity Caves | Destroyed B-75 Beast 13179 | -6/Proximity Caves | Build established: Scavenger-Skirmisher 13601 | -6/Proximity Caves | Discovered exit to Factory (range 5) 14067 | -6/Proximity Caves | Found Prototype Launcher 14067 | -6/Proximity Caves | Identified Scatter Rocket Array 14277 | -6/Proximity Caves | Entered Factory 14277 | -6/Factory | Evolved 2 slots: Utility x2 14278 | -6/Factory | Identified exit to Lower Caves 14279 | -6/Factory | Identified exit to Factory 15620 | -6/Factory | Discovered exit to Factory (range 16) 15731 | -6/Factory | Lost 3 parts (2n1w) 15780 | -6/Factory | Entered Lower Caves 15818 | -6/Lower Caves | Attacked by a faux Warlord 15896 | -6/Lower Caves | Lost 6 parts (1p4n1w) 16239 | -6/Lower Caves | Build established: Scavenger-Tank 16820 | -6/Lower Caves | Learned location of 1 exit from Factory 16940 | -6/Lower Caves | Acquired the password to a Derelict Tinkerer's latest research 16953 | -6/Lower Caves | Found Prototype Special Weapon 18022 | -6/Lower Caves | Discovered new exit (range 6) 18034 | -6/Lower Caves | Identified exit to Lower Caves 18069 | -6/Lower Caves | Entered another Lower Caves area 18183 | -6/Lower Caves | Attracted the attention of an 0b10 checkpoint 18240 | -6/Lower Caves | Discovered exit to Factory (range 3) 18708 | -6/Lower Caves | Encountered a Warlord checkpoint 18808 | -6/Lower Caves | Learned location of 1 exit from Proximity Caves 18813 | -6/Lower Caves | Learned 12 Factory zone layouts 19295 | -6/Lower Caves | Discovered new exit (range 10) 19389 | -6/Lower Caves | Identified exit to Zion 19907 | -6/Lower Caves | Entered Zion 20072 | -6/Zion | System corruption cleaned by Quarantine Array 20294 | -6/Zion | Given A8's code to call for help 20325 | -6/Zion | Discovered new exit (range 12) 20907 | -6/Zion | Learned Factory security intel 21022 | -6/Zion | Learned Factory garrison access intel 21844 | -6/Zion | Found Prototype Device 21908 | -6/Zion | Identified Mobile Refinery Mk. CCLXVII 23012 | -6/Zion | Identified exit to Proximity Caves 23015 | -6/Zion | Entered Proximity Caves 23642 | -5/Proximity Caves | Attracted the attention of an 0b10 checkpoint 23870 | -5/Proximity Caves | Entered Factory 23870 | -5/Factory | Evolved 2 slots: Utility x2 23871 | -5/Factory | Identified exit to Extension 23875 | -5/Factory | Loaded intel: 4 garrison access locations 24183 | -5/Factory | Identified Molecular Deconstructor 24414 | -5/Factory | Identified exit to Upper Caves 24723 | -5/Factory | System corruption reached 10% 24803 | -5/Factory | Entered Extension 24875 | -5/Extension | Rescued a captive Derelict 24875 | -5/Extension | Rescued a captive Derelict 24894 | -5/Extension | Build established: Hacker-Mutant 25010 | -5/Extension | Lost 3 parts (2n1w) 25076 | -5/Extension | Rescued A7 25206 | -5/Extension | Rescued a captive Derelict 25208 | -5/Extension | Rescued a captive Derelict 25354 | -5/Extension | Build established: Hacker-Tank 25367 | -5/Extension | Spotted B-75 Beast 25483 | -5/Extension | Crushed by falling debris 25493 | -5/Extension | Crushed by falling debris 25494 | -5/Extension | System corruption reached 30% 25515 | -5/Extension | Rescued a captive Derelict 25524 | -5/Extension | Lost 5 parts (3u2w) 25531 | -5/Extension | Rescued a captive Derelict 25582 | -5/Extension | Rescued a captive Derelict 25582 | -5/Extension | Rescued a captive Derelict 25790 | -5/Extension | Build established: Scavenger-Mutant 25859 | -5/Extension | Discovered new exit (range 10) 25860 | -5/Extension | Discovered new exit (range 6) 25881 | -5/Extension | Identified exit to Cetus 25905 | -5/Extension | Identified exit to Factory 26005 | -5/Extension | Disrupted transfer network 26007 | -5/Extension | Entered Cetus 26007 | -5/Cetus | Accompanied by 11 allies (A7) 26012 | -5/Cetus | Acquired a Cetus Manufacturing Module code from A7 26038 | -5/Cetus | Spotted Cetus Guard 26038 | -5/Cetus | Spotted Cetus Guard 26039 | -5/Cetus | Spotted Cetus Guard 26040 | -5/Cetus | Spotted Cetus Guard 26042 | -5/Cetus | Allies destroyed Cetus Guard 26054 | -5/Cetus | Allies destroyed Cetus Guard 26065 | -5/Cetus | Allies destroyed Cetus Guard 26072 | -5/Cetus | Allies destroyed Cetus Guard 26225 | -5/Cetus | Cetus Manufacturing Module disabled 26270 | -5/Cetus | Discovered new exit (range 16) 26349 | -5/Cetus | Identified exit to Archives 26400 | -5/Cetus | Spotted Cetus Guard 26400 | -5/Cetus | Spotted Cetus Guard 26408 | -5/Cetus | Allies destroyed Cetus Guard 26408 | -5/Cetus | Spotted Cetus Guard 26420 | -5/Cetus | Allies destroyed Cetus Guard 26422 | -5/Cetus | Build established: Scavenger-Tank 26430 | -5/Cetus | Allies destroyed Cetus Guard 26431 | -5/Cetus | Spotted Cetus Guard 26436 | -5/Cetus | Destroyed Cetus Guard 26447 | -5/Cetus | Discovered exit to Factory (range 15) 26460 | -5/Cetus | Met Revision 17 26578 | -5/Cetus | Entered Factory 26578 | -4/Factory | Accompanied by 1 ally (A7) 26578 | -4/Factory | Evolved 2 slots: Propulsion x1, Utility x1 27074 | -4/Factory | Build established: Scavenger-Mutant 27188 | -4/Factory | Lost 3 parts (1p2u) 27283 | -4/Factory | Discovered new exit (range 7) 27293 | -4/Factory | Identified exit to Research 27703 | -4/Factory | System corruption reached 10% 27719 | -4/Factory | Garrison activated, responded to threat 27765 | -4/Factory | Incoming assault squad redirected 27779 | -4/Factory | Destroyed 7 combat bots 27780 | -4/Factory | Lost 3 parts (1n1u1w) 27874 | -4/Factory | Garrison activated, responded to threat 27981 | -4/Factory | Destroyed 9 combat bots 28054 | -4/Factory | Lost 8 parts (1p3n3u1w) 28062 | -4/Factory | Destroyed 8 combat bots 28299 | -4/Factory | Lost 3 parts (1n1u1w) 28328 | -4/Factory | First assault squad dispatched 28381 | -4/Factory | Lost 5 parts (1p2u2w) 28404 | -4/Factory | Found Prototype Device 28491 | -4/Factory | Destroyed 12 combat bots 28570 | -4/Factory | Cargo convoy interrupted 28577 | -4/Factory | Core integrity fell below 50% 28578 | -4/Factory | Self-destructed Last Messages --------------- 28573_ Power Conduit explodes. 28573_ A-15 Conveyor destroyed. 28573_ Penetrated by Slug. 28573_ Autogun destroyed. 28573_ Penetrated by Slug. 28573_ Centrium Heavy Treads destroyed. 28573_ Slug penetrates Wall. 28573_ ALERT: Construction progress impeded, dispatching reinforcements to local area. 28575_ U-05 Engineer lays Concrete. 28575_ A-27 Freighter destroyed. 28576_ Penetrated by Slug. 28576_ Construction Platform disabled. 28576_ Penetrated by Slug. 28576_ U-05 Engineer lays Concrete. 28577_ Penetrated by Slug. 28578_ ALERT: Rogue bot located, Programmers report to Factory Zone 1F. 28578_ Imp. KE Penetrator destroyed. 28578_ Slug penetrates Wall. 28578_ U-05 Engineer lays Concrete. Map ----- +----------------------------------------------------+ | /# #???# ## """ """ #???????????????? | | " # ##### """" ## #???????????????? | | " # # """" ## """ """ #???????????????? | | # # """" |## """ """ #???????????????? | | + # """" ## """ """ ??????????????????? | | " # + """" ## ????????????????????? | | " # # """" ## ?????????????????????? | | # # ## ???????????????#?????? | | # ################?#+###################### | | # ???? | | # ??? | | #### """"""" """ ??? !!% | | ##"# """"""" "T" ?? = ]]] | | ## """"""" " " ?? = ]%!= | | ## """"""" ####+###### # # # | | ## ????? # # # ] | | =## """""????"""""" # """ += % /% | | ##] """""????""""" # """ #+######## [ [! | | + """""?? """""" # """ !!/#%*%= ## | | ## """"""" """"""" h/ !/%# =!%= ## | | ## # !/ # [" " ## | | ## """"""" """"""" # "" "" #[ | | #### """"""??"""""""!h # % #% | | ?? """""?" """""""= ]] ##;############## ### | | ?? """"""" """""""! !] #" ?? ??? | | ?? != [@ """ """ # ? ??? | | ??? ?"""""" """""""[!!= """ """ # " ?? | | ??? """"""" """""""= =][% """ """ # ?? | | ???# """"""" """""" xhh!*! # ? | | ???# """"""" """"" %%%* w=%############+ # ? | | ???# % [% ^ *% ? | | ???# R / *=* ^ # | | + ! u pi! ^ # | | ? # u ! ]!%| ^ # # | | ? ]%] ^ # | | # T ## # ]] # ###### # #? | | # ##### # ! ! !?????? | | # #???# #??? ?? | | + # # " " #???# #?????? """" #? | | # [!% " " " " #???# # ????????????? | | " # =*= # " " " " " #???# # ???????????? | | " + % # # " " " " " #???# #### "??????????? | | # # # # " " " " " #???# #???? "?????????? | | # # " " " " " #???# #?????" "????????? | | " # ## " " " " " #???# #??????" "???????? | | " # # # " " " " " #???# #??????? ??????? | | *### ## " " " " " #???? ????????? ??????? | | +*=* + #???? ?????????? ?????? | | ###### ## #############???? ???????????#"????? | | # # #???????????????]?????????????????? | +----------------------------------------------------+ Best States ------------- Heat Dissipation 81 Energy Generation 21 Energy Capacity 515 Matter Stores 300 Matter Capacity 300 Sight Range 20 Robot Scan Range 20 Terrain Scan Density 10 Jamming Range 14 Power Amplification 20 Armor Coverage 2100 Propulsion Shielding 66 Weapon Cycling 20 Phase Shifting 10 Evasion (%) 50 Targeting Accuracy 12 Target Analysis 6 Recoil Reduction 6 Matter Filtering 30 Offensive Hacking 32 Defensive Hacking 14 Authchip Count 1 Item Schematics ----------------- Huge Storage Unit | -9/Materials | Hacked Combat Drone Bay | -7/Data Miner | Free Lgt. Regenerative Plating | -7/Data Miner | Free Cld. Aerolev Unit | -7/Data Miner | Free Thermal Defense Suite | -7/Data Miner | Free Hvy. Treads | -7/Data Miner | Free Shock Maul | -7/Data Miner | Free Imp. Weapon Cycler | -7/Data Miner | Free Enh. Gauss Cannon | -7/Data Miner | Free Lrn. Proton Cannon | -7/Data Miner | Free Quantum Capacitor | -7/Data Miner | Free Remote Shield | -7/Data Miner | Free Imp. Proton Missile Launcher | -6/Zion | Archive Hvy. Phase Cannon | -6/Zion | Archive Imp. Hacking Suite | -6/Zion | Archive Hyp. Coil Gun | -6/Zion | Archive Imp. Thermal Shield | -6/Zion | Archive Lgt. Angular Momentum Engine | -6/Zion | Archive Corruption Screen | -6/Zion | Archive Imp. Antigrav System | -6/Zion | Archive Enh. Optical Array | -6/Zion | Archive Disruptor Cannon | -6/Zion | Archive Adv. Terrain Scanner | -6/Zion | Archive Arm. Medium Treads | -6/Zion | Archive Plasma Flamer | -6/Zion | Archive Robot Schematics ------------------ M-28 Smith | -7/Data Miner | Free S-27 Virus | -7/Data Miner | Free R-10 Processor | -7/Data Miner | Free X-67 Chaingunner | -7/Data Miner | Free Y-54 Guardian | -7/Data Miner | Free Y-64 Sentinel | -7/Data Miner | Free G-47 Trooper | -6/Zion | Archive C-57 Dissector | -6/Zion | Archive R-06 Scavenger | -6/Zion | Archive M-22 Extractor | -6/Zion | Archive Fabricated ------------ Nothing Alien Tech Used ----------------- None Achievements -------------- None Challenges ------------ None Game ------ Seed BarrageTrackerBroadsword Manual? 0 Play Time 01:59:37 Cumulative 150.2 hours Start 2022.02.02 @ 15:13:29 End 2022.02.03 @ 21:39:52 Sessions 5 Manual Loads 0 Difficulty Rogue Special Mode None Game No. 252 Rogue 235 Adventurer 4 Explorer 13 Win Type - Total 8 Types 6/0/0/2/0/0/0/0/0 Lore% 65 Gallery% 83 Achievement% 68 Wizard Run 0 Options --------- ASCII 0 Keyboard 1 Movement Numpad Keybinds 0 Fullscreen 1 Font 18/SmallcapsGlow Map View 76x50 Tactical HUD 1 Map Filters NONE Filters NONE Steam 1 RUN: 4d2d2c14-4c9b-418f-be84-035a84220b87